{"text_format":"1","workbook":"xlsx","n_sheets":2,"sheets":["Tabelle1","Tabelle2"],"not_rendered":{"charts":0,"images":0,"macros":1,"external_links":0,"defined_names":0,"comments":0,"pivot_tables":0},"unopened":[],"bounds":{"document_bytes":16777216,"sheet_cells":100000,"rows_first":2000,"rows_last":500,"rows_between":2000,"halvings":0,"cell_chars":16384,"cell_head_chars":4096},"cells_cut":0,"cells_raw":0,"read":"whole","date_system":"1900"}

{"sheet":"Tabelle1","index":0,"n_rows":27,"n_cols":6,"rows_kept":27,"cut":false,"hidden":false,"merged":[]}
["Projekt","Plätze","Erststimmen","Zweitstimmen","Drittstimmen","Gesamtstimmen"]
["Projekt A",20,{"$f":"COUNTIF(Tabelle2!B:B,Tabelle1!$A2)","v":11},{"$f":"COUNTIF(Tabelle2!C:C,Tabelle1!$A2)","v":4},{"$f":"COUNTIF(Tabelle2!D:D,Tabelle1!$A2)","v":5},{"$f":"SUM(C2:E2)","v":20}]
["Projekt B",15,{"$f":"COUNTIF(Tabelle2!B:B,Tabelle1!$A3)","v":8},{"$f":"COUNTIF(Tabelle2!C:C,Tabelle1!$A3)","v":10},{"$f":"COUNTIF(Tabelle2!D:D,Tabelle1!$A3)","v":13},{"$f":"SUM(C3:E3)","v":31}]
["Projekt C",17,{"$f":"COUNTIF(Tabelle2!B:B,Tabelle1!$A4)","v":11},{"$f":"COUNTIF(Tabelle2!C:C,Tabelle1!$A4)","v":0},{"$f":"COUNTIF(Tabelle2!D:D,Tabelle1!$A4)","v":2},13]
["Projekt D",5,{"$f":"COUNTIF(Tabelle2!B:B,Tabelle1!$A5)","v":6},{"$f":"COUNTIF(Tabelle2!C:C,Tabelle1!$A5)","v":9},{"$f":"COUNTIF(Tabelle2!D:D,Tabelle1!$A5)","v":15},30]
["Projekt E",10,{"$f":"COUNTIF(Tabelle2!B:B,Tabelle1!$A6)","v":3},{"$f":"COUNTIF(Tabelle2!C:C,Tabelle1!$A6)","v":10},{"$f":"COUNTIF(Tabelle2!D:D,Tabelle1!$A6)","v":2},15]
["Projekt F",8,{"$f":"COUNTIF(Tabelle2!B:B,Tabelle1!$A7)","v":14},{"$f":"COUNTIF(Tabelle2!C:C,Tabelle1!$A7)","v":13},{"$f":"COUNTIF(Tabelle2!D:D,Tabelle1!$A7)","v":10},37]
["Projekt G",3,{"$f":"COUNTIF(Tabelle2!B:B,Tabelle1!$A8)","v":1},{"$f":"COUNTIF(Tabelle2!C:C,Tabelle1!$A8)","v":27},{"$f":"COUNTIF(Tabelle2!D:D,Tabelle1!$A8)","v":9},37]
["Projekt H",10,{"$f":"COUNTIF(Tabelle2!B:B,Tabelle1!$A9)","v":4},{"$f":"COUNTIF(Tabelle2!C:C,Tabelle1!$A9)","v":5},{"$f":"COUNTIF(Tabelle2!D:D,Tabelle1!$A9)","v":16},25]
["Projekt I",10,{"$f":"COUNTIF(Tabelle2!B:B,Tabelle1!$A10)","v":0},{"$f":"COUNTIF(Tabelle2!C:C,Tabelle1!$A10)","v":0},{"$f":"COUNTIF(Tabelle2!D:D,Tabelle1!$A10)","v":0},0]
["Projekt J",20,{"$f":"COUNTIF(Tabelle2!B:B,Tabelle1!$A11)","v":0},{"$f":"COUNTIF(Tabelle2!C:C,Tabelle1!$A11)","v":1},{"$f":"COUNTIF(Tabelle2!D:D,Tabelle1!$A11)","v":0},1]
["Projekt K",15,{"$f":"COUNTIF(Tabelle2!B:B,Tabelle1!$A12)","v":0},{"$f":"COUNTIF(Tabelle2!C:C,Tabelle1!$A12)","v":0},{"$f":"COUNTIF(Tabelle2!D:D,Tabelle1!$A12)","v":0},0]
["Projekt L",16,{"$f":"COUNTIF(Tabelle2!B:B,Tabelle1!$A13)","v":0},{"$f":"COUNTIF(Tabelle2!C:C,Tabelle1!$A13)","v":0},{"$f":"COUNTIF(Tabelle2!D:D,Tabelle1!$A13)","v":0},0]
["Projekt M",20,{"$f":"COUNTIF(Tabelle2!B:B,Tabelle1!$A14)","v":0},{"$f":"COUNTIF(Tabelle2!C:C,Tabelle1!$A14)","v":0},{"$f":"COUNTIF(Tabelle2!D:D,Tabelle1!$A14)","v":0},0]
["Projekt N",20,{"$f":"COUNTIF(Tabelle2!B:B,Tabelle1!$A15)","v":11},{"$f":"COUNTIF(Tabelle2!C:C,Tabelle1!$A15)","v":0},{"$f":"COUNTIF(Tabelle2!D:D,Tabelle1!$A15)","v":0},11]
["Projekt O",10,{"$f":"COUNTIF(Tabelle2!B:B,Tabelle1!$A16)","v":0},{"$f":"COUNTIF(Tabelle2!C:C,Tabelle1!$A16)","v":0},{"$f":"COUNTIF(Tabelle2!D:D,Tabelle1!$A16)","v":0},0]
["Projekt P",15,{"$f":"COUNTIF(Tabelle2!B:B,Tabelle1!$A17)","v":0},{"$f":"COUNTIF(Tabelle2!C:C,Tabelle1!$A17)","v":0},{"$f":"COUNTIF(Tabelle2!D:D,Tabelle1!$A17)","v":0},0]
["Projekt Q",15,{"$f":"COUNTIF(Tabelle2!B:B,Tabelle1!$A18)","v":0},{"$f":"COUNTIF(Tabelle2!C:C,Tabelle1!$A18)","v":0},{"$f":"COUNTIF(Tabelle2!D:D,Tabelle1!$A18)","v":0},0]
["Projekt R",10,{"$f":"COUNTIF(Tabelle2!B:B,Tabelle1!$A19)","v":0},{"$f":"COUNTIF(Tabelle2!C:C,Tabelle1!$A19)","v":0},{"$f":"COUNTIF(Tabelle2!D:D,Tabelle1!$A19)","v":0},0]
["Projekt S",20,{"$f":"COUNTIF(Tabelle2!B:B,Tabelle1!$A20)","v":0},{"$f":"COUNTIF(Tabelle2!C:C,Tabelle1!$A20)","v":5},{"$f":"COUNTIF(Tabelle2!D:D,Tabelle1!$A20)","v":1},6]
["Projekt T",10,{"$f":"COUNTIF(Tabelle2!B:B,Tabelle1!$A21)","v":4},{"$f":"COUNTIF(Tabelle2!C:C,Tabelle1!$A21)","v":4},{"$f":"COUNTIF(Tabelle2!D:D,Tabelle1!$A21)","v":0},8]
["Projekt U",10,{"$f":"COUNTIF(Tabelle2!B:B,Tabelle1!$A22)","v":0},{"$f":"COUNTIF(Tabelle2!C:C,Tabelle1!$A22)","v":0},{"$f":"COUNTIF(Tabelle2!D:D,Tabelle1!$A22)","v":4},4]
["Projekt V",20,{"$f":"COUNTIF(Tabelle2!B:B,Tabelle1!$A23)","v":4},{"$f":"COUNTIF(Tabelle2!C:C,Tabelle1!$A23)","v":0},{"$f":"COUNTIF(Tabelle2!D:D,Tabelle1!$A23)","v":1},5]
["Projekt W",10,{"$f":"COUNTIF(Tabelle2!B:B,Tabelle1!$A24)","v":6},{"$f":"COUNTIF(Tabelle2!C:C,Tabelle1!$A24)","v":0},{"$f":"COUNTIF(Tabelle2!D:D,Tabelle1!$A24)","v":3},9]
["Projekt X",10,{"$f":"COUNTIF(Tabelle2!B:B,Tabelle1!$A25)","v":9},{"$f":"COUNTIF(Tabelle2!C:C,Tabelle1!$A25)","v":1},{"$f":"COUNTIF(Tabelle2!D:D,Tabelle1!$A25)","v":11},21]
["Projekt Y",15,{"$f":"COUNTIF(Tabelle2!B:B,Tabelle1!$A26)","v":0},{"$f":"COUNTIF(Tabelle2!C:C,Tabelle1!$A26)","v":3},{"$f":"COUNTIF(Tabelle2!D:D,Tabelle1!$A26)","v":0},3]
["Projekt Z",15,{"$f":"COUNTIF(Tabelle2!B:B,Tabelle1!$A27)","v":0},{"$f":"COUNTIF(Tabelle2!C:C,Tabelle1!$A27)","v":0},{"$f":"COUNTIF(Tabelle2!D:D,Tabelle1!$A27)","v":0},0]

{"sheet":"Tabelle2","index":1,"n_rows":167,"n_cols":4,"rows_kept":167,"cut":false,"hidden":false,"merged":[]}
["Schüler","Erstwunsch","Zweitwunsch","Drittwunsch"]
["Schüler 1","Projekt F","Projekt G","Projekt H"]
["Schüler 2","Projekt B","Projekt G","Projekt D"]
["Schüler 3","Projekt A","Projekt B","Projekt G"]
["Schüler 4","Projekt H","Projekt D","Projekt B"]
["Schüler 5","Projekt B","Projekt E","Projekt F"]
["Schüler 6","Projekt F","Projekt G","Projekt D"]
["Schüler 7","Projekt N","Projekt G","Projekt B"]
["Schüler 8","Projekt N","Projekt D","Projekt G"]
["Schüler 9","Projekt W","Projekt H","Projekt X"]
["Schüler 10","Projekt D","Projekt E","Projekt F"]
["Schüler 11","Projekt C","Projekt T","Projekt W"]
["Schüler 12","Projekt X","Projekt F","Projekt B"]
["Schüler 13","Projekt C","Projekt B","Projekt A"]
["Schüler 14","Projekt A","Projekt F","Projekt H"]
["Schüler 15","Projekt F","Projekt G","Projekt H"]
["Schüler 16","Projekt F","Projekt G","Projekt H"]
["Schüler 17","Projekt B","Projekt G","Projekt D"]
["Schüler 18","Projekt A","Projekt B","Projekt G"]
["Schüler 19","Projekt H","Projekt D","Projekt B"]
["Schüler 20","Projekt B","Projekt E","Projekt F"]
["Schüler 21","Projekt F","Projekt G","Projekt D"]
["Schüler 22","Projekt N","Projekt G","Projekt B"]
["Schüler 23","Projekt N","Projekt D","Projekt G"]
["Schüler 24","Projekt W","Projekt H","Projekt X"]
["Schüler 25","Projekt D","Projekt E","Projekt F"]
["Schüler 26","Projekt C","Projekt T","Projekt W"]
["Schüler 27","Projekt X","Projekt F","Projekt B"]
["Schüler 28","Projekt C","Projekt B","Projekt A"]
["Schüler 29","Projekt A","Projekt F","Projekt H"]
["Schüler 30","Projekt F","Projekt G","Projekt H"]
["Schüler 31","Projekt V","Projekt F","Projekt E"]
["Schüler 32","Projekt V","Projekt S","Projekt H"]
["Schüler 33","Projekt E","Projekt F","Projekt X"]
["Schüler 34","Projekt C","Projekt A","Projekt D"]
["Schüler 35","Projekt X","Projekt Y","Projekt U"]
["Schüler 36","Projekt T","Projekt S","Projekt D"]
["Schüler 37","Projekt X","Projekt G","Projekt X"]
["Schüler 38","Projekt G","Projekt E","Projekt F"]
["Schüler 39","Projekt D","Projekt A","Projekt C"]
["Schüler 40","Projekt A","Projekt B","Projekt C"]
["Schüler 41","Projekt F","Projekt G","Projekt D"]
["Schüler 42","Projekt N","Projekt G","Projekt B"]
["Schüler 43","Projekt N","Projekt D","Projekt G"]
["Schüler 44","Projekt W","Projekt H","Projekt X"]
["Schüler 45","Projekt D","Projekt E","Projekt F"]
["Schüler 46","Projekt C","Projekt T","Projekt W"]
["Schüler 47","Projekt X","Projekt F","Projekt B"]
["Schüler 48","Projekt C","Projekt B","Projekt A"]
["Schüler 49","Projekt A","Projekt F","Projekt H"]
["Schüler 50","Projekt F","Projekt G","Projekt H"]
["Schüler 51","Projekt V","Projekt F","Projekt E"]
["Schüler 52","Projekt N","Projekt G","Projekt B"]
["Schüler 53","Projekt V","Projekt S","Projekt H"]
["Schüler 54","Projekt E","Projekt F","Projekt X"]
["Schüler 55","Projekt C","Projekt A","Projekt D"]
["Schüler 56","Projekt X","Projekt Y","Projekt U"]
["Schüler 57","Projekt T","Projekt S","Projekt D"]
["Schüler 58","Projekt X","Projekt G","Projekt X"]
["Schüler 59","Projekt C","Projekt B","Projekt A"]
["Schüler 60","Projekt A","Projekt F","Projekt H"]
["Schüler 61","Projekt F","Projekt G","Projekt H"]
["Schüler 62","Projekt F","Projekt G","Projekt H"]
["Schüler 63","Projekt B","Projekt G","Projekt D"]
["Schüler 64","Projekt A","Projekt B","Projekt G"]
["Schüler 65","Projekt H","Projekt D","Projekt B"]
["Schüler 66","Projekt B","Projekt E","Projekt F"]
["Schüler 67","Projekt F","Projekt G","Projekt D"]
["Schüler 68","Projekt N","Projekt G","Projekt B"]
["Schüler 69","Projekt N","Projekt D","Projekt G"]
["Schüler 70","Projekt W","Projekt H","Projekt X"]
["Schüler 71","Projekt D","Projekt E","Projekt F"]
["Schüler 72","Projekt A","Projekt B","Projekt G"]
["Schüler 73","Projekt H","Projekt D","Projekt B"]
["Schüler 74","Projekt B","Projekt E","Projekt F"]
["Schüler 75","Projekt F","Projekt G","Projekt D"]
["Schüler 76","Projekt N","Projekt G","Projekt B"]
["Schüler 77","Projekt N","Projekt D","Projekt G"]
["Schüler 78","Projekt W","Projekt H","Projekt X"]
["Schüler 79","Projekt D","Projekt E","Projekt F"]
["Schüler 80","Projekt E","Projekt F","Projekt X"]
["Schüler 81","Projekt C","Projekt A","Projekt D"]
["Schüler 82","Projekt X","Projekt Y","Projekt U"]
["Schüler 83","Projekt T","Projekt S","Projekt D"]
["Schüler 84","Projekt X","Projekt G","Projekt X"]
["Schüler 85","Projekt C","Projekt B","Projekt A"]
["Schüler 86","Projekt A","Projekt F","Projekt H"]
["Schüler 87","Projekt F","Projekt G","Projekt H"]
["Schüler 88","Projekt F","Projekt G","Projekt H"]
["Schüler 89","Projekt B","Projekt G","Projekt D"]
["Schüler 90","Projekt W","Projekt J","Projekt U"]
["Schüler 91","Projekt T","Projekt X","Projekt S"]
["Schüler 92","Projekt A","Projekt T","Projekt V"]
["Schüler 93"]
["Schüler 94"]
["Schüler 95"]
["Schüler 96"]
["Schüler 97"]
["Schüler 98"]
["Schüler 99"]
["Schüler 100"]
["Schüler 101"]
["Schüler 102"]
["Schüler 103"]
["Schüler 104"]
["Schüler 105"]
["Schüler 106"]
["Schüler 107"]
["Schüler 108"]
["Schüler 109"]
["Schüler 110"]
["Schüler 111"]
["Schüler 112"]
["Schüler 113"]
["Schüler 114"]
["Schüler 115"]
["Schüler 116"]
["Schüler 117"]
["Schüler 118"]
["Schüler 119"]
["Schüler 120"]
["Schüler 121"]
["Schüler 122"]
["Schüler 123"]
["Schüler 124"]
["Schüler 125"]
["Schüler 126"]
["Schüler 127"]
["Schüler 128"]
["Schüler 129"]
["Schüler 130"]
["Schüler 131"]
["Schüler 132"]
["Schüler 133"]
["Schüler 134"]
["Schüler 135"]
["Schüler 136"]
["Schüler 137"]
["Schüler 138"]
["Schüler 139"]
["Schüler 140"]
["Schüler 141"]
["Schüler 142"]
["Schüler 143"]
["Schüler 144"]
["Schüler 145"]
["Schüler 146"]
["Schüler 147"]
["Schüler 148"]
["Schüler 149"]
["Schüler 150"]
["Schüler 151"]
["Schüler 152"]
["Schüler 153"]
["Schüler 154"]
["Schüler 155"]
["Schüler 156"]
["Schüler 157"]
["Schüler 158"]
["Schüler 159"]
["Schüler 160"]
["Schüler 161"]
["Schüler 162"]
["Schüler 163"]
["Schüler 164"]
["Schüler 165"]
["Schüler 166"]